bitfinex-derivatives/quotes_ETHF0:USTF0_20260125
["timestamp","ask_amount","ask_price","bid_price","bid_amount"]
[1769352000924,3.92970608,2934.9,2933.4,0.1390717]
[1769352001215,4.10032608,2934.8,2933.4,0.1390717]
[1769352001422,3.92970608,2934.7,2933.4,0.1390717]
[1769352001911,4.06089254,2934.7,2932.7,0.1390717]
[1769352002115,4.06089254,2934.6,2932.7,0.1390717]
[1769352002314,0.13118646,2934.4,2932.7,0.1390717]
[1769352002629,0.3015548,2934.2,2932.7,0.1390717]
[1769352002818,3.92970608,2934.1,2932.7,0.1390717]
[1769352004726,0.17065,2934.2,2932.7,0.1390717]
[1769352006725,3.92697951,2934.1,2932.7,0.1390717]
[1769352006926,0.30385203,2934.2,2932.7,0.1390717]
[1769352007128,3.92697321,2934.1,2932.7,0.1390717]
[1769352007324,0.30385203,2934.2,2932.7,0.1390717]
[1769352007524,3.92600668,2934.1,2932.7,0.1390717]
[1769352007724,0.30385203,2934.2,2932.7,0.1390717]
[1769352007924,3.92600435,2934.1,2932.7,0.1390717]
[1769352008125,0.30385203,2934.2,2932.7,0.1390717]
[1769352008325,3.92601235,2934.1,2932.7,0.1390717]
[1769352008529,0.30385203,2934.2,2932.7,0.1390717]
[1769352008830,0.30385203,2934.2,2932.3,2.00540389]
[1769352008831,0.30429963,2933.9,2932.3,0.15304773]
[1769352009037,0.13363963,2933.7,2932.3,0.15304773]
[1769352014332,0.30431963,2933.7,2932.3,0.15304773]
[1769352015624,0.17068,2933.6,2932.3,0.15304773]
[1769352015926,2.30770844,2933.6,2932.3,0.00340389]
[1769352016133,0.17069,2933.5,2932.3,0.00340389]
[1769352029543,3.9237256,2933.4,2932.3,0.00340389]
[1769352029744,0.17069,2933.5,2932.3,0.00340389]
[1769352029943,3.92382425,2933.4,2932.3,0.00340389]
[1769352030144,0.17069,2933.5,2932.3,0.00340389]
[1769352030345,3.92360002,2933.4,2932.3,0.00340389]
[1769352030545,0.17069,2933.5,2932.3,0.00340389]
[1769352030746,3.92371173,2933.4,2932.3,0.00340389]
[1769352030947,0.17069,2933.5,2932.3,0.00340389]
[1769352031146,3.92371463,2933.4,2932.3,0.00340389]
[1769352031347,0.17069,2933.5,2932.3,0.00340389]
[1769352031549,3.92382854,2933.4,2932.3,0.00340389]
[1769352031745,0.17069,2933.5,2932.3,0.00340389]
[1769352031939,3.92570876,2933.4,2932.3,0.00340389]
[1769352032242,0.17069,2933.5,2932.3,0.00340389]
[1769352032439,3.92730635,2933.4,2932.3,0.00340389]
[1769352032743,0.17069,2933.5,2932.3,0.00340389]
[1769352032744,3.92730635,2933.3,2932.3,0.00340389]
[1769352032944,0.17069,2933.5,2932.3,0.00340389]
[1769352033144,3.92730326,2933.4,2932.3,0.00340389]
[1769352033442,0.17069,2933.5,2932.3,0.00340389]
[1769352033443,0.13540677,2934.0,2932.3,0.14401869]
[1769352033646,3.92865572,2933.9,2932.3,0.14401869]
[1769352033847,3.92865572,2933.8,2932.3,0.14401869]
[1769352034050,3.92865572,2933.7,2932.3,0.14401869]
[1769352034345,3.92865572,2933.6,2932.3,0.14401869]
[1769352034548,2.17265,2934.1,2932.3,0.14401869]
[1769352034736,3.92993824,2934.0,2932.3,0.14401869]
[1769352034941,3.92993824,2933.9,2932.3,0.14401869]
[1769352035137,3.92993824,2933.8,2932.3,0.14401869]
[1769352035340,3.92993824,2933.7,2932.3,0.14401869]
[1769352035538,2.17265,2934.1,2932.3,0.14401869]
[1769352035741,3.93154333,2934.0,2932.3,0.14401869]
[1769352035942,3.93154333,2933.9,2932.3,0.14401869]
[1769352036146,3.93154333,2933.8,2932.3,0.14401869]
[1769352036348,2.17265,2934.1,2932.3,0.14401869]
[1769352036543,3.93272559,2934.0,2932.3,0.14401869]
[1769352036742,3.93272559,2933.9,2932.3,0.14401869]
[1769352036941,3.93272559,2933.8,2932.3,0.14401869]
[1769352037140,2.17265,2934.1,2932.3,0.14401869]
[1769352037348,3.93272372,2934.0,2932.3,0.14401869]
[1769352037649,3.93272372,2933.9,2932.4,0.1406148]
[1769352037850,3.93272372,2933.8,2932.4,0.1406148]
[1769352038149,2.17265,2934.1,2932.4,0.1406148]
[1769352038348,3.93322768,2934.0,2932.4,0.1406148]
[1769352038548,3.93322768,2933.9,2932.4,0.1406148]
[1769352038750,3.93322768,2933.8,2932.4,0.1406148]
[1769352038945,2.17265,2934.1,2932.4,0.1406148]
[1769352039150,3.93529449,2934.0,2932.4,0.1406148]
[1769352039350,3.93529449,2933.9,2932.4,0.1406148]
[1769352039541,3.93529449,2933.8,2932.4,0.1406148]
[1769352039748,2.17265,2934.1,2932.4,0.1406148]
[1769352039950,3.93490003,2934.0,2932.4,0.1406148]
[1769352040256,3.93490003,2933.9,2932.4,0.1406148]
[1769352040449,2.17265,2934.1,2932.4,0.1406148]
[1769352040647,3.93427184,2934.0,2932.4,0.1406148]
[1769352040848,2.17265,2934.1,2932.4,0.1406148]
[1769352041049,3.93427184,2934.0,2932.4,0.1406148]
[1769352041354,2.17265,2934.1,2932.4,0.1406148]
[1769352041555,3.93334855,2934.0,2932.4,0.1406148]
[1769352041760,2.17265,2934.1,2932.4,0.1406148]
[1769352041955,3.93334893,2934.0,2932.4,0.1406148]
[1769352042154,2.17265,2934.1,2932.4,0.1406148]
[1769352044456,0.17065,2934.1,2932.4,0.1406148]
[1769352052158,2.13836029,2934.6,2932.5,0.1406148]
[1769352052462,3.928346,2934.5,2932.6,0.1406148]
[1769352052660,3.928346,2934.4,2932.6,0.1406148]
[1769352052862,2.13836029,2934.6,2932.7,0.1406148]
[1769352053061,3.92823025,2934.5,2932.7,0.1406148]
[1769352053262,4.23351917,2934.4,2932.7,0.1406148]
[1769352053464,4.06287917,2934.3,2932.8,2.002]
[1769352053664,0.13464892,2934.3,2932.8,2.002]
[1769352054765,0.13464892,2934.3,2932.8,2.1426148]
[1769352055266,0.13464892,2934.3,2932.9,0.1406148]
[1769352055468,0.17064,2934.4,2932.9,0.1406148]
[1769352060370,4.06495672,2934.3,2932.9,0.1406148]
[1769352060572,4.06477806,2934.2,2932.9,0.1406148]
[1769352060772,0.13394345,2934.2,2932.9,0.1406148]
[1769352064378,3.93551693,2934.1,2932.9,0.1406148]
[1769352064575,0.13394345,2934.2,2932.4,0.14523495]
[1769352064773,0.13374946,2934.0,2932.4,0.14523495]
[1769352068280,3.9368258,2933.9,2932.4,0.14523495]
[1769352068484,3.9368258,2933.8,2932.4,0.14523495]
[1769352068686,0.13374946,2934.0,2932.4,0.14523495]
[1769352068885,3.93858313,2933.9,2932.4,0.14523495]
[1769352069181,3.93858313,2933.8,2932.4,0.14523495]
[1769352069382,0.13374946,2934.0,2932.4,0.14523495]
[1769352069573,3.93882526,2933.9,2932.4,0.14523495]
[1769352069884,3.93882526,2933.8,2932.4,0.14523495]
[1769352070183,0.13374946,2934.0,2932.4,0.14523495]
[1769352070384,3.93881734,2933.9,2932.4,0.14523495]
[1769352070683,3.93881734,2933.8,2932.4,0.14523495]
[1769352070981,0.13374946,2934.0,2932.4,0.14523495]
[1769352071183,3.9386279,2933.9,2932.4,0.14523495]
[1769352071488,0.13374946,2934.0,2932.4,0.14523495]
[1769352071489,3.9386279,2933.8,2932.4,0.14523495]
[1769352071677,0.13374946,2934.0,2932.4,0.14523495]
[1769352071877,3.93839699,2933.9,2932.4,0.14523495]
[1769352072077,3.93839699,2933.8,2932.4,0.14523495]
[1769352072382,0.13374946,2934.0,2932.4,0.14523495]
[1769352072683,3.93814742,2933.9,2932.4,0.14523495]
[1769352072888,3.93814742,2933.8,2932.4,0.14523495]
[1769352073076,0.13374946,2934.0,2932.4,0.14523495]
[1769352073283,3.93814642,2933.9,2932.4,0.14523495]
[1769352073476,0.13374946,2934.0,2932.4,0.14523495]
[1769352073477,3.93814642,2933.8,2932.4,0.14523495]
[1769352073676,0.13374946,2934.0,2932.4,0.14523495]
[1769352073871,3.93788552,2933.9,2932.4,0.14523495]
[1769352074086,3.93788552,2933.8,2932.4,0.14523495]
[1769352074386,0.13374946,2934.0,2932.4,0.14523495]
[1769352074575,3.9376653,2933.9,2932.4,0.14523495]
[1769352074775,0.13374946,2934.0,2932.4,0.14523495]
[1769352074988,3.93766701,2933.9,2932.4,0.14523495]
[1769352075283,0.30440946,2934.0,2932.4,0.14523495]
[1769352075481,3.9374805,2933.9,2932.4,0.14523495]
[1769352075781,0.30440946,2934.0,2932.4,0.14523495]
[1769352075981,3.93748193,2933.9,2932.4,0.14523495]
[1769352076283,0.30440946,2934.0,2932.4,0.14523495]
[1769352076484,3.93731232,2933.9,2932.4,0.14523495]
[1769352076689,0.30440946,2934.0,2932.4,0.14523495]
[1769352076877,3.93731243,2933.9,2932.4,0.14523495]
[1769352077077,0.30440946,2934.0,2932.4,0.14523495]
[1769352077277,3.93731169,2933.9,2932.4,0.14523495]
[1769352077479,0.30440946,2934.0,2932.4,0.14523495]
[1769352077679,3.93716564,2933.9,2932.4,0.14523495]
[1769352077885,0.30440946,2934.0,2932.4,0.14523495]
[1769352078086,3.93716632,2933.9,2932.4,0.14523495]
[1769352078280,0.30440946,2934.0,2932.4,0.14523495]
[1769352078476,3.93703579,2933.9,2932.4,0.14523495]
[1769352078781,0.30440946,2934.0,2932.4,0.14523495]
[1769352078981,3.93723289,2933.9,2932.4,0.14523495]
[1769352079183,0.30440946,2934.0,2932.4,0.14523495]
[1769352079387,3.93720664,2933.9,2932.4,0.14523495]
[1769352079587,0.30440946,2934.0,2932.4,0.14523495]
[1769352079791,3.93712631,2933.9,2932.4,0.14523495]
[1769352079990,0.30440946,2934.0,2932.4,0.14523495]
[1769352080183,3.93712631,2933.9,2932.4,0.14523495]
[1769352080384,0.30440946,2934.0,2932.4,0.14523495]
[1769352080586,3.93703956,2933.9,2932.4,0.14523495]
[1769352080788,0.30440946,2934.0,2932.4,0.14523495]
[1769352080983,3.93704252,2933.9,2932.4,0.14523495]
[1769352081180,0.30440946,2934.0,2932.4,0.14523495]
[1769352081384,3.93704125,2933.9,2932.4,0.14523495]
[1769352081585,0.30440946,2934.0,2932.4,0.14523495]
[1769352081793,3.93697398,2933.9,2932.4,0.14523495]
[1769352081984,0.30440946,2934.0,2932.4,0.14523495]
[1769352082184,3.93697403,2933.9,2932.4,0.14523495]
[1769352082383,0.30440946,2934.0,2932.4,0.14523495]
[1769352082591,3.93707007,2933.9,2932.4,0.14523495]
[1769352082890,0.30440946,2934.0,2932.4,0.14523495]
[1769352083090,3.93706979,2933.9,2932.4,0.14523495]
[1769352083290,0.30440946,2934.0,2932.4,0.14523495]
[1769352083491,3.9371525,2933.9,2932.4,0.14523495]
[1769352083690,0.30440946,2934.0,2932.4,0.14523495]
[1769352083891,3.93715201,2933.9,2932.4,0.14523495]
[1769352084090,0.30440946,2934.0,2932.4,0.14523495]
[1769352084296,3.93715112,2933.9,2932.4,0.14523495]
[1769352084591,0.30440946,2934.0,2932.4,0.14523495]
[1769352084790,3.93718117,2933.9,2932.4,0.14523495]
[1769352084991,0.30440946,2934.0,2932.4,0.14523495]
[1769352085189,3.93717641,2933.9,2932.4,0.14523495]
[1769352085392,0.30440946,2934.0,2932.4,0.14523495]
[1769352085592,3.93721914,2933.9,2932.4,0.14523495]
[1769352085792,0.30440946,2934.0,2932.4,0.14523495]
[1769352085994,3.93721914,2933.9,2932.4,0.14523495]
[1769352086195,0.30440946,2934.0,2932.4,0.14523495]
[1769352086494,3.93714901,2933.9,2932.4,0.14523495]
[1769352086695,0.30440946,2934.0,2932.4,0.14523495]
[1769352086891,3.93749698,2933.9,2932.4,0.14523495]
[1769352087090,0.30440946,2934.0,2932.4,0.14523495]
[1769352087292,3.93749305,2933.9,2932.4,0.14523495]
[1769352087491,0.30440946,2934.0,2932.4,0.14523495]
[1769352087793,3.93789799,2933.9,2932.4,0.14523495]
[1769352087986,0.30440946,2934.0,2932.4,0.14523495]
[1769352088186,3.93789816,2933.9,2932.4,0.14523495]
[1769352088383,3.9384061,2933.8,2932.4,0.14523495]
[1769352088686,0.30440946,2934.0,2932.4,0.14523495]
[1769352088890,3.93840717,2933.9,2932.4,0.14523495]
[1769352089086,3.93840717,2933.8,2932.4,0.14523495]
[1769352089287,0.30440946,2934.0,2932.4,0.14523495]
[1769352089492,3.93904792,2933.9,2932.4,0.14523495]
[1769352089693,3.93904792,2933.8,2932.4,0.14523495]
[1769352089994,0.30440946,2934.0,2932.4,0.14523495]
[1769352090193,3.93904748,2933.9,2932.4,0.14523495]
[1769352090395,3.93904748,2933.8,2932.4,0.14523495]
[1769352090597,0.30440946,2934.0,2932.4,0.14523495]
[1769352090794,3.93909656,2933.9,2932.4,0.14523495]
[1769352090990,3.93909656,2933.8,2932.4,0.14523495]
[1769352091198,0.30440946,2934.0,2932.4,0.14523495]
[1769352091395,3.939097,2933.9,2932.4,0.14523495]
[1769352091595,3.939097,2933.8,2932.4,0.14523495]
[1769352091793,0.30440946,2934.0,2932.4,0.14523495]
[1769352092092,3.93943634,2933.9,2932.4,0.14523495]
[1769352092292,3.93943634,2933.8,2932.4,0.14523495]
[1769352092495,0.30440946,2934.0,2932.4,0.14523495]
[1769352092692,3.93983443,2933.9,2932.4,0.14523495]
[1769352092995,3.93983443,2933.8,2932.4,0.14523495]
[1769352093196,0.13374946,2934.0,2932.4,0.14523495]
[1769352093500,0.13225855,2933.5,2932.3,0.00340389]
[1769352093996,0.13225855,2933.4,2932.3,0.00340389]
[1769352094193,4.07145357,2933.3,2932.3,0.00340389]
[1769352094393,3.93964385,2933.2,2932.3,0.00340389]
[1769352094601,0.30295855,2933.3,2932.3,0.00340389]
[1769352094801,3.93605922,2933.2,2932.3,0.00340389]
[1769352094999,3.93594693,2933.1,2931.7,0.14420893]
[1769352095298,0.13457417,2933.2,2931.7,0.14420893]
[1769352095500,3.93337724,2933.1,2931.7,0.14420893]
[1769352095697,0.30527417,2933.2,2931.7,0.14420893]
[1769352096001,4.23858451,2933.1,2931.7,0.14420893]
[1769352096192,3.93330034,2933.0,2931.7,0.14691718]
[1769352096388,0.13457417,2933.0,2931.7,0.00270825]
[1769352097200,3.93031768,2932.9,2931.7,0.00270825]
[1769352097508,0.0024808,2932.9,2931.7,0.00270825]
[1769352097795,0.13624147,2932.9,2931.7,0.00270825]
[1769352100202,0.13395472,2932.7,2931.7,0.00270825]
[1769352105400,0.17073,2932.8,2931.7,0.00270825]
[1769352105597,0.0024808,2932.9,2931.7,0.14691718]
[1769352139237,3.9405904,2932.8,2931.7,0.14691718]
[1769352139433,0.0024808,2932.9,2931.7,0.14691718]
[1769352139636,3.94059718,2932.8,2931.7,0.14691718]
[1769352139835,0.0024808,2932.9,2931.7,0.14691718]
[1769352140031,3.94059542,2932.8,2931.7,0.14691718]
[1769352140231,0.0024808,2932.9,2931.7,0.14691718]
[1769352140438,3.94056041,2932.8,2931.7,0.14691718]
[1769352140648,0.0024808,2932.9,2931.7,0.14691718]
[1769352140837,3.94056082,2932.8,2931.7,0.14691718]
[1769352141033,0.0024808,2932.9,2931.7,0.14691718]
[1769352141240,3.9405224,2932.8,2931.7,0.14691718]
[1769352141536,0.0024808,2932.9,2931.7,0.14691718]
[1769352141737,3.94053303,2932.8,2931.7,0.14691718]
[1769352142038,0.0024808,2932.9,2931.7,0.14691718]
[1769352142239,3.9404988,2932.8,2931.7,0.14691718]
[1769352142537,0.0024808,2932.9,2931.7,0.14691718]
[1769352142738,3.94050098,2932.8,2931.7,0.14691718]
[1769352142939,0.0024808,2932.9,2931.7,0.14691718]
[1769352143140,3.9405019,2932.8,2931.7,0.14691718]
[1769352143337,0.0024808,2932.9,2931.7,0.14691718]
[1769352143637,3.94046836,2932.8,2931.7,0.14691718]
[1769352143939,0.0024808,2932.9,2931.7,0.14691718]
[1769352144134,3.94044089,2932.8,2931.7,0.14691718]
[1769352144335,0.0024808,2932.9,2931.7,0.14691718]
[1769352144535,3.94038602,2932.8,2931.7,0.14691718]
[1769352144737,0.0024808,2932.9,2931.7,0.14691718]
[1769352144941,3.94038591,2932.8,2931.7,0.14691718]
[1769352145137,0.0024808,2932.9,2931.7,0.14691718]
[1769352145338,3.94033344,2932.8,2931.7,0.14691718]
[1769352145539,3.94033344,2932.7,2931.7,0.14691718]
[1769352145737,0.0024808,2932.9,2930.9,0.13848808]
[1769352145738,0.17075,2932.4,2930.9,0.13848808]
[1769352145939,3.94033344,2932.3,2930.9,0.13848808]
[1769352146241,0.17075,2932.4,2930.9,0.13848808]
[1769352146242,3.94033344,2932.2,2930.9,0.13848808]
[1769352146542,0.17075,2932.4,2930.9,0.13848808]
[1769352146843,3.93420206,2932.3,2930.9,0.14107025]
[1769352147040,3.93420206,2932.2,2930.9,0.14107025]
[1769352147244,0.17075,2932.4,2930.9,0.14107025]
[1769352147446,4.10247546,2932.3,2930.9,0.14107025]
[1769352147742,3.93171546,2932.2,2930.9,0.14107025]
[1769352147941,0.44107943,2932.3,2930.9,0.14107025]
[1769352148138,3.93170688,2932.2,2930.9,0.14107025]
[1769352148441,0.44107943,2932.3,2930.9,0.14107025]
[1769352148645,3.92968312,2932.2,2930.9,0.14107025]
[1769352148947,0.44107943,2932.3,2930.9,0.14107025]
[1769352149243,3.9296746,2932.2,2930.9,0.14107025]
[1769352149435,0.44107943,2932.3,2930.9,0.14107025]
[1769352149635,3.92810951,2932.2,2930.9,0.14107025]
[1769352149837,0.44107943,2932.3,2930.9,0.14107025]
[1769352150839,0.17076,2932.3,2930.9,0.14107025]
[1769352153237,6.3884808,2932.9,2930.9,0.14107025]
[1769352153438,4.09604203,2932.8,2930.9,0.14107025]
[1769352153636,3.92531203,2932.7,2930.9,0.14107025]
[1769352155250,0.17073,2932.8,2930.9,0.14107025]
[1769352160953,0.17073,2932.8,2931.0,0.1417024]
[1769352161652,0.17073,2932.8,2931.1,0.1417024]
[1769352162046,0.17073,2932.8,2931.3,0.1417024]
[1769352162252,0.0024808,2932.9,2931.3,0.1417024]
[1769352174762,3.94080539,2932.8,2931.3,0.1417024]
[1769352174960,0.0024808,2932.9,2931.3,0.1417024]
[1769352175159,3.94080539,2932.8,2931.3,0.1417024]
[1769352175454,3.94078938,2932.7,2931.3,0.1417024]
[1769352175650,0.0024808,2932.9,2931.3,0.1417024]
[1769352175853,3.94078938,2932.8,2931.3,0.1417024]
[1769352176052,3.94078938,2932.7,2931.3,0.1417024]
[1769352176260,0.0024808,2932.9,2931.3,0.1417024]
[1769352176460,3.94115398,2932.8,2931.3,0.1417024]
[1769352176654,3.94115398,2932.7,2931.3,0.1417024]
[1769352176861,0.0024808,2932.9,2931.3,0.1417024]
[1769352177064,3.94115466,2932.8,2931.3,0.1417024]
[1769352177263,3.94115466,2932.7,2931.3,0.1417024]
[1769352177457,0.0024808,2932.9,2931.3,0.1417024]
[1769352177657,3.94158171,2932.8,2931.3,0.1417024]
[1769352177961,3.94158171,2932.7,2931.3,0.1417024]
[1769352178163,0.0024808,2932.9,2931.3,0.1417024]
[1769352178462,3.94232059,2932.8,2931.3,0.1417024]
[1769352178651,3.94232059,2932.7,2931.3,0.1417024]
[1769352178857,0.0024808,2932.9,2931.3,0.1417024]
[1769352179063,3.94232032,2932.8,2931.3,0.1417024]
[1769352179262,3.94232032,2932.7,2931.3,0.1417024]
[1769352179464,0.0024808,2932.9,2931.3,0.1417024]
[1769352179665,3.94321152,2932.8,2931.3,0.1417024]
[1769352179866,0.0024808,2932.9,2931.3,0.1417024]
[1769352179867,3.94321152,2932.7,2931.3,0.1417024]
[1769352180067,3.94419549,2932.6,2931.3,0.1417024]
[1769352180262,0.0024808,2932.9,2931.3,0.1417024]
[1769352180461,3.94419454,2932.8,2931.3,0.1417024]
[1769352180761,3.94419454,2932.7,2931.3,0.1417024]
[1769352180960,3.94419454,2932.6,2931.3,0.1417024]
[1769352181160,0.0024808,2932.9,2931.3,0.1417024]
[1769352181361,3.94532625,2932.8,2931.3,0.1417024]
[1769352181665,3.94532625,2932.7,2931.3,0.1417024]
[1769352181865,3.94532625,2932.6,2931.3,0.1417024]
[1769352182069,0.31396758,2932.9,2931.4,2.003]
[1769352182266,3.94698185,2932.8,2931.4,2.003]
[1769352182461,3.94698185,2932.7,2931.5,0.1417024]
[1769352182659,3.94698185,2932.6,2931.5,0.1417024]
[1769352182859,0.1732008,2932.9,2931.5,0.1417024]
[1769352183060,3.94704478,2932.8,2931.5,0.1417024]
[1769352183358,3.94704478,2932.7,2931.5,0.1417024]
[1769352183560,3.94704478,2932.6,2931.5,0.1417024]
[1769352183762,0.1732008,2932.9,2931.5,0.1417024]
[1769352183957,3.94822415,2932.8,2931.5,0.1417024]
[1769352184169,3.94822415,2932.7,2931.5,0.1417024]
[1769352184364,3.94822415,2932.6,2931.5,0.1417024]
[1769352184668,0.1732008,2932.9,2931.5,0.1417024]
[1769352185072,3.9495369,2932.8,2931.5,0.1417024]
[1769352185261,0.1732008,2932.9,2931.5,0.1417024]
[1769352186368,0.0024808,2932.9,2931.5,0.1417024]
[1769352196079,0.0024808,2932.9,2931.5,2.1447024]
[1769352196278,0.0024808,2932.9,2931.6,0.14824935]
[1769352249224,0.0024808,2932.9,2931.6,0.31904935]
[1769352249527,0.0024808,2932.9,2931.8,0.14747211]
[1769352250529,0.0024808,2932.9,2931.8,0.31825211]
[1769352250731,2.003,2933.6,2931.9,0.14747211]
[1769352250932,3.95129739,2933.5,2931.9,0.14747211]
[1769352251131,3.95129739,2933.4,2931.9,0.14747211]
[1769352251431,2.003,2933.6,2932.0,0.14747211]
[1769352251630,3.95050567,2933.5,2932.0,0.14747211]
[1769352251929,3.95050567,2933.4,2932.0,0.14747211]
[1769352252130,0.00404301,2933.6,2932.0,0.14747211]
[1769352252431,3.95051115,2933.5,2932.0,0.14747211]
[1769352252630,3.95051115,2933.4,2932.0,0.14747211]
[1769352252823,0.00404301,2933.6,2932.0,0.14747211]
[1769352253024,3.94969715,2933.5,2932.0,0.14747211]
[1769352253225,0.00404301,2933.6,2932.0,0.14747211]
[1769352256130,0.00404301,2933.6,2932.1,0.15017434]
[1769352259427,0.00404301,2933.6,2932.2,2.002]
[1769352259627,0.00404301,2933.6,2932.3,0.15017434]
[1769352265834,0.00404301,2933.6,2931.4,3.58481]
[1769352265835,0.1707,2933.3,2931.9,0.15017434]
[1769352266137,0.30503417,2933.3,2931.9,0.15017434]
[1769352267939,0.1707,2933.3,2931.9,0.15017434]
[1769352275440,3.94345966,2933.2,2929.9,0.2215205]
[1769352275639,0.1708,2931.7,2930.2,0.2215205]
[1769352275848,0.17081,2931.5,2930.2,0.2215205]
[1769352276037,3.94345966,2931.4,2930.2,0.22140881]
[1769352276239,3.95158219,2931.3,2930.2,0.22140881]
[1769352276440,0.00361575,2931.3,2930.2,0.22452139]
[1769352277040,0.17443575,2931.3,2929.2,2.003]
[1769352278041,0.17443575,2931.3,2929.3,0.21819152]
[1769352279346,0.17443575,2931.3,2929.4,0.21819152]
[1769352283445,0.17443575,2931.3,2929.6,0.22561278]
[1769352286949,0.17443575,2931.3,2929.8,0.22552688]
[1769352298360,0.17443575,2931.3,2930.0,0.22677581]
[1769352302058,0.17443575,2931.3,2930.2,0.22720219]
[1769352303474,3.97856622,2931.2,2930.2,0.22720219]
[1769352303770,0.00361575,2931.3,2930.2,0.22720219]
[1769352305375,3.99733014,2931.2,2930.2,0.22720219]
[1769352305575,3.99733014,2931.1,2930.2,0.22720219]
[1769352305766,3.99733014,2931.0,2930.2,0.22720219]
[1769352305966,0.00361575,2931.3,2930.2,0.22720219]
[1769352306267,3.96882931,2931.2,2930.2,0.22720219]
[1769352306472,0.00361575,2931.3,2930.2,0.22720219]
[1769352306667,3.96816462,2931.2,2930.2,0.22720219]
[1769352306865,0.00361575,2931.3,2930.2,0.22720219]
[1769352307070,3.96816336,2931.2,2930.2,0.22720219]
[1769352307268,0.00361575,2931.3,2930.2,0.22720219]
[1769352307479,3.96749511,2931.2,2930.2,0.22720219]
[1769352307665,0.00361575,2931.3,2930.2,0.22720219]
[1769352307866,3.96749142,2931.2,2930.2,0.22720219]
[1769352308067,0.00361575,2931.3,2930.2,0.22720219]
[1769352308364,3.96701991,2931.2,2930.2,0.22720219]
[1769352308563,0.00361575,2931.3,2930.2,0.22720219]
[1769352308761,3.96703598,2931.2,2930.2,0.22720219]
[1769352308969,0.00361575,2931.3,2930.2,0.22720219]
[1769352309168,3.96244485,2931.2,2930.2,0.22720219]
[1769352309369,0.00361575,2931.3,2930.2,0.22720219]
[1769352309573,3.96211311,2931.2,2930.2,0.22720219]
[1769352309773,0.00361575,2931.3,2930.2,0.22720219]
[1769352309974,3.9621118,2931.2,2930.2,0.22720219]
[1769352310272,0.00361575,2931.3,2930.4,0.22666439]
[1769352310471,3.96187148,2931.2,2930.4,0.22666439]
[1769352310672,0.00361575,2931.3,2930.4,0.22666439]
[1769352310873,3.961872,2931.2,2930.4,0.22666439]
[1769352311072,0.00361575,2931.3,2930.4,0.22666439]
[1769352311274,3.96164157,2931.2,2930.4,0.22666439]
[1769352311462,0.00361575,2931.3,2930.4,0.22666439]
[1769352311667,3.9617077,2931.2,2930.4,0.22666439]
[1769352311868,0.00361575,2931.3,2930.4,0.22666439]
[1769352312174,3.96170468,2931.2,2930.4,0.22666439]
[1769352312370,0.00361575,2931.3,2930.4,0.22666439]
[1769352312674,3.96160858,2931.2,2930.5,2.23034744]
[1769352312972,0.00361575,2931.3,2930.6,0.22634744]
[1769352313174,3.96160906,2931.2,2930.6,0.22634744]
[1769352313367,0.00361575,2931.3,2930.6,0.22634744]
[1769352313567,3.96158272,2931.2,2930.6,0.22634744]
[1769352313768,0.00361575,2931.3,2930.6,0.22634744]
[1769352314075,3.96158555,2931.2,2930.6,0.22634744]
[1769352314280,0.00361575,2931.3,2930.6,0.22634744]
[1769352314576,3.96152856,2931.2,2930.6,0.22634744]
[1769352314878,0.00361575,2931.3,2930.6,0.22634744]
[1769352315080,3.96152856,2931.2,2930.6,0.22634744]
[1769352315276,0.00361575,2931.3,2930.6,0.22634744]
[1769352315574,3.96165118,2931.2,2930.6,0.22634744]
[1769352315775,0.00361575,2931.3,2930.6,0.22634744]
[1769352315975,3.96165118,2931.2,2930.6,0.22634744]
[1769352316178,0.00361575,2931.3,2930.6,0.22634744]
[1769352316371,3.96139622,2931.2,2930.6,0.22634744]
[1769352316572,0.00361575,2931.3,2930.6,0.22634744]
[1769352316772,3.96164766,2931.2,2930.6,0.22634744]
[1769352316973,0.00361575,2931.3,2930.6,0.22634744]
[1769352317173,3.96164766,2931.2,2930.6,0.22634744]
[1769352317373,0.00361575,2931.3,2930.6,0.22634744]
[1769352317576,3.9618079,2931.2,2930.6,0.22634744]
[1769352317776,0.00361575,2931.3,2930.6,0.22634744]
[1769352317980,3.96180873,2931.2,2930.6,0.22634744]
[1769352318178,0.00361575,2931.3,2930.6,0.22634744]
[1769352318378,3.96179269,2931.2,2930.6,0.22634744]
[1769352318685,0.00361575,2931.3,2930.6,0.22634744]
[1769352318877,3.96178913,2931.2,2930.6,0.22634744]
[1769352319078,0.00361575,2931.3,2930.6,0.22634744]
[1769352319383,3.96178943,2931.2,2930.6,0.22634744]
[1769352319582,0.00361575,2931.3,2930.6,0.22634744]
[1769352319784,3.9618037,2931.2,2930.6,0.22634744]
[1769352320083,0.00361575,2931.3,2930.6,0.22634744]
[1769352320278,3.96197778,2931.2,2930.6,0.22634744]
[1769352320485,0.00361575,2931.3,2930.6,0.22634744]
[1769352320689,3.96202423,2931.2,2930.6,0.22634744]
[1769352320987,0.00361575,2931.3,2930.6,0.22634744]
[1769352321188,3.96205125,2931.2,2930.6,0.22634744]
[1769352321386,0.00361575,2931.3,2930.6,0.22634744]
[1769352321587,3.96211046,2931.2,2930.6,0.22634744]
[1769352321786,0.00361575,2931.3,2930.6,0.22634744]
[1769352323393,0.00361575,2931.3,2929.2,0.00412274]
[1769352323394,3.96204762,2931.2,2929.8,2.004]
[1769352323588,3.96204762,2931.1,2929.8,2.004]
[1769352323889,3.96204762,2931.0,2929.2,0.00412274]
[1769352324092,3.96204762,2930.9,2929.2,0.00412274]
[1769352324291,3.96204762,2930.8,2929.2,0.00412274]
[1769352324587,0.17086,2930.6,2929.2,0.00412274]
[1769352324794,4.13290762,2930.5,2929.2,0.00412274]
[1769352324987,3.96204762,2930.4,2929.2,0.00412274]
[1769352325188,0.17086,2930.5,2929.2,0.00412274]
[1769352325492,0.17087,2930.3,2929.2,0.00412274]
[1769352326088,0.17087,2930.3,2929.2,0.1443355]
[1769352326790,8.39,2931.2,2929.3,0.14021276]
[1769352326791,0.17083,2931.1,2929.3,0.14021276]
[1769352326992,3.95507321,2931.0,2929.3,0.14021276]
[1769352327193,3.95507321,2930.9,2929.3,0.14021276]
[1769352327389,3.93684973,2930.8,2929.3,0.14021276]
[1769352327594,0.17086,2930.6,2929.3,0.14021276]
[1769352327796,3.93684973,2930.5,2929.3,0.14021276]
[1769352327990,0.17086,2930.6,2929.3,0.14021276]
[1769352328193,3.93516755,2930.5,2929.3,0.14021276]
[1769352328393,0.17086,2930.6,2929.3,0.14021276]
[1769352328589,3.93494488,2930.5,2929.3,0.14021276]
[1769352328788,3.93494488,2930.5,2929.2,0.00412274]
[1769352328789,0.07937302,2930.6,2929.2,0.00412274]
[1769352328994,2.004,2930.7,2929.2,0.00412274]
[1769352328995,4.01402431,2930.5,2929.2,0.00412274]
[1769352329298,0.17088,2930.2,2929.2,0.00412274]
[1769352329495,0.17089,2930.1,2929.2,0.00412274]
[1769352329691,4.10237326,2930.0,2929.2,0.00412274]
[1769352329891,3.93148326,2929.9,2929.2,0.00412274]
[1769352330091,0.17089,2930.0,2929.2,0.00412274]
[1769352331391,0.17089,2930.0,2928.5,0.14021276]